[Event "Early-Titled-Tuesday-Blitz-March-12-2024"]
[Site "Chess.com"]
[Date "2024.03.12"]
[Round "3"]
[White "rasmussvane"]
[Black "Kielinkei"]
[Result "1/2-1/2"]
[WhiteElo "2962"]
[BlackElo "2569"]
[TimeControl "180+1"]
[EndTime "8:29:25 PDT"]
[Termination "Game drawn by repetition"]

1. Nf3 {[%clk 0:02:57.2]} 1... Nf6 {[%clk 0:02:59.9]} 2. g3 {[%clk 0:02:57.3]}
2... b5 {[%clk 0:03:00]} 3. Bg2 {[%clk 0:02:57.7]} 3... Bb7 {[%clk 0:03:00.7]}
4. O-O {[%clk 0:02:58.2]} 4... e6 {[%clk 0:03:01.3]} 5. b3 {[%clk 0:02:55.3]}
5... Be7 {[%clk 0:03:01.6]} 6. c4 {[%clk 0:02:55.2]} 6... a6 {[%clk 0:02:59.6]}
7. Bb2 {[%clk 0:02:54.6]} 7... O-O {[%clk 0:02:59.4]} 8. Qc2 {[%clk 0:02:52]}
8... c5 {[%clk 0:02:57.7]} 9. Nc3 {[%clk 0:02:47.3]} 9... bxc4 {[%clk
0:02:57.7]} 10. bxc4 {[%clk 0:02:48.2]} 10... Nc6 {[%clk 0:02:58]} 11. Rfd1
{[%clk 0:02:35.7]} 11... Rb8 {[%clk 0:02:52.3]} 12. Rab1 {[%clk 0:02:34.5]}
12... Qc7 {[%clk 0:02:48.6]} 13. Ba1 {[%clk 0:02:14.9]} 13... Nd4 {[%clk
0:02:44.4]} 14. Qd3 {[%clk 0:02:00.3]} 14... Nxf3+ {[%clk 0:02:39.7]} 15. Bxf3
{[%clk 0:02:01.2]} 15... Bxf3 {[%clk 0:02:39.9]} 16. Qxf3 {[%clk 0:01:59.9]}
16... Rxb1 {[%clk 0:02:38.6]} 17. Rxb1 {[%clk 0:02:00.8]} 17... Rb8 {[%clk
0:02:38.7]} 18. Qd3 {[%clk 0:01:54.5]} 18... h6 {[%clk 0:02:35]} 19. Qc2 {[%clk
0:01:45.9]} 19... Rb7 {[%clk 0:02:24.9]} 20. Rb3 {[%clk 0:01:41.8]} 20... Qb8
{[%clk 0:02:21.7]} 21. Na4 {[%clk 0:01:31.5]} 21... Rxb3 {[%clk 0:02:16.2]} 22.
axb3 {[%clk 0:01:29.6]} 22... d6 {[%clk 0:02:14.5]} 23. d4 {[%clk 0:01:26.5]}
23... Nd7 {[%clk 0:02:11.1]} 24. dxc5 {[%clk 0:01:19.3]} 24... Nxc5 {[%clk
0:02:04.9]} 25. Nxc5 {[%clk 0:01:15.2]} 25... dxc5 {[%clk 0:02:05.8]} 26. Bc3
{[%clk 0:01:15]} 26... Qb7 {[%clk 0:01:58]} 27. Qd1 {[%clk 0:01:07.7]} 27... Qc7
{[%clk 0:01:55.1]} 28. Qd3 {[%clk 0:01:06.3]} 28... Qd6 {[%clk 0:01:51.6]} 29.
Qc2 {[%clk 0:00:58.2]} 29... Qc7 {[%clk 0:01:51.2]} 30. Bd2 {[%clk 0:00:56.9]}
30... Bf6 {[%clk 0:01:48.9]} 31. Bf4 {[%clk 0:00:55.8]} 31... Be5 {[%clk
0:01:45.8]} 32. Bd2 {[%clk 0:00:55.1]} 32... Bf6 {[%clk 0:01:45.5]} 33. h4
{[%clk 0:00:50.5]} 33... Bd4 {[%clk 0:01:43.7]} 34. Qd3 {[%clk 0:00:34.6]} 34...
Qb8 {[%clk 0:01:40]} 35. b4 {[%clk 0:00:21.6]} 35... Qc7 {[%clk 0:01:36.6]} 36.
b5 {[%clk 0:00:20.6]} 36... axb5 {[%clk 0:01:33.1]} 37. cxb5 {[%clk 0:00:21.5]}
37... Qb6 {[%clk 0:01:16.3]} 38. Qc4 {[%clk 0:00:20.7]} 38... Qc7 {[%clk
0:01:08.7]} 39. e3 {[%clk 0:00:19.8]} 39... Be5 {[%clk 0:01:07]} 40. Kf1 {[%clk
0:00:18]} 40... Qb6 {[%clk 0:01:02.4]} 41. Ke2 {[%clk 0:00:16.4]} 41... Bd6
{[%clk 0:01:00.8]} 42. Qa4 {[%clk 0:00:16.2]} 42... Qb7 {[%clk 0:00:57.3]} 43.
Qa6 {[%clk 0:00:16.2]} 43... Qd5 {[%clk 0:00:49.9]} 44. Qc6 {[%clk 0:00:08.2]}
44... Qc4+ {[%clk 0:00:34.8]} 45. Ke1 {[%clk 0:00:08.5]} 45... Be5 {[%clk
0:00:33.3]} 46. b6 {[%clk 0:00:08.4]} 46... Qc2 {[%clk 0:00:15]} 47. b7 {[%clk
0:00:08]} 47... c4 {[%clk 0:00:10.7]} 48. Qc8+ {[%clk 0:00:02.9]} 48... Kh7
{[%clk 0:00:10.3]} 49. b8=Q {[%clk 0:00:02.2]} 49... Bxb8 {[%clk 0:00:10.8]} 50.
Qxb8 {[%clk 0:00:03.1]} 50... c3 {[%clk 0:00:11]} 51. Bxc3 {[%clk 0:00:03.3]}
51... Qxc3+ {[%clk 0:00:11.3]} 52. Ke2 {[%clk 0:00:03.6]} 52... Qc2+ {[%clk
0:00:11.6]} 53. Kf3 {[%clk 0:00:03.9]} 53... Qd1+ {[%clk 0:00:11.9]} 54. Kg2
{[%clk 0:00:04.1]} 54... Qd5+ {[%clk 0:00:12.7]} 55. Kh2 {[%clk 0:00:03.7]}
55... Qf5 {[%clk 0:00:13.3]} 56. Qb2 {[%clk 0:00:03.2]} 56... Qf6 {[%clk
0:00:13.7]} 57. Qe2 {[%clk 0:00:03.6]} 57... Qf5 {[%clk 0:00:14.2]} 58. e4
{[%clk 0:00:03.9]} 58... Qf6 {[%clk 0:00:14.7]} 59. Qe3 {[%clk 0:00:04.4]} 59...
Qg6 {[%clk 0:00:15]} 60. Kg2 {[%clk 0:00:04.8]} 60... e5 {[%clk 0:00:15.3]} 61.
Qf3 {[%clk 0:00:05.2]} 61... Qf6 {[%clk 0:00:15.7]} 62. Qxf6 {[%clk 0:00:04.5]}
62... gxf6 {[%clk 0:00:16.2]} 63. Kf3 {[%clk 0:00:04.4]} 63... Kg6 {[%clk
0:00:16.2]} 64. g4 {[%clk 0:00:02.6]} 64... h5 {[%clk 0:00:16.4]} 65. gxh5+
{[%clk 0:00:02.3]} 65... Kxh5 {[%clk 0:00:16.8]} 66. Kg3 {[%clk 0:00:03]} 66...
f5 {[%clk 0:00:11.4]} 67. exf5 {[%clk 0:00:02.9]} 67... f6 {[%clk 0:00:11.5]}
68. f3 {[%clk 0:00:02.8]} 68... Kh6 {[%clk 0:00:09.7]} 69. Kg4 {[%clk
0:00:02.8]} 69... Kg7 {[%clk 0:00:09.9]} 70. Kh5 {[%clk 0:00:02.8]} 70... Kh7
{[%clk 0:00:10.4]} 71. Kg4 {[%clk 0:00:03.5]} 71... Kg7 {[%clk 0:00:11.1]} 72.
Kg3 {[%clk 0:00:04.2]} 72... Kh6 {[%clk 0:00:11.1]} 73. Kh3 {[%clk 0:00:04.7]}
73... Kh5 {[%clk 0:00:11.5]} 74. Kg3 {[%clk 0:00:05]} 74... Kh6 {[%clk
0:00:12.3]} 1/2-1/2

[Event "Early-Titled-Tuesday-Blitz-March-12-2024"]
[Site "Chess.com"]
[Date "2024.03.12"]
[Round "3"]
[White "Ze-Pequeno"]
[Black "RobertJFischer71"]
[Result "0-1"]
[WhiteElo "2199"]
[BlackElo "2575"]
[TimeControl "180+1"]
[EndTime "8:29:28 PDT"]
[Termination "RobertJFischer71 won on time"]

1. e4 {[%clk 0:03:00.1]} 1... e5 {[%clk 0:02:59.9]} 2. Nf3 {[%clk 0:02:58.3]}
2... Nc6 {[%clk 0:03:00]} 3. Nc3 {[%clk 0:02:58.7]} 3... Nf6 {[%clk 0:02:59.8]}
4. Bb5 {[%clk 0:02:58.5]} 4... Nd4 {[%clk 0:02:58.5]} 5. Nxd4 {[%clk 0:02:58.2]}
5... exd4 {[%clk 0:02:59.4]} 6. e5 {[%clk 0:02:59]} 6... dxc3 {[%clk 0:02:26.3]}
7. exf6 {[%clk 0:02:57.4]} 7... Qxf6 {[%clk 0:02:27.2]} 8. dxc3 {[%clk
0:02:57.6]} 8... Qe5+ {[%clk 0:02:27.7]} 9. Qe2 {[%clk 0:02:57.5]} 9... Qxe2+
{[%clk 0:02:28.1]} 10. Kxe2 {[%clk 0:02:57.6]} 10... c6 {[%clk 0:02:15.9]} 11.
Bd3 {[%clk 0:02:56.9]} 11... d5 {[%clk 0:02:16.4]} 12. c4 {[%clk 0:02:56.9]}
12... Be6 {[%clk 0:02:10.2]} 13. cxd5 {[%clk 0:02:56.5]} 13... Bxd5 {[%clk
0:02:11.1]} 14. f3 {[%clk 0:02:57]} 14... O-O-O {[%clk 0:02:09.8]} 15. Be3
{[%clk 0:02:52.9]} 15... Kb8 {[%clk 0:01:57.7]} 16. Kf2 {[%clk 0:02:51.3]} 16...
Bd6 {[%clk 0:01:57.2]} 17. g3 {[%clk 0:02:51]} 17... Rhe8 {[%clk 0:01:55.8]} 18.
Bd4 {[%clk 0:02:44.2]} 18... Be5 {[%clk 0:01:46.2]} 19. Bxe5+ {[%clk 0:02:43.7]}
19... Rxe5 {[%clk 0:01:47.1]} 20. a3 {[%clk 0:02:35.6]} 20... g6 {[%clk
0:01:33]} 21. Rhe1 {[%clk 0:02:31.5]} 21... Rde8 {[%clk 0:01:23.5]} 22. Rxe5
{[%clk 0:02:30.4]} 22... Rxe5 {[%clk 0:01:24.4]} 23. f4 {[%clk 0:02:31.1]} 23...
Re7 {[%clk 0:01:21.2]} 24. Re1 {[%clk 0:02:30.4]} 24... Rd7 {[%clk 0:01:18.9]}
25. Re8+ {[%clk 0:02:27.7]} 25... Kc7 {[%clk 0:01:18.8]} 26. Ke3 {[%clk
0:02:26.1]} 26... c5 {[%clk 0:01:14.8]} 27. Be2 {[%clk 0:02:01.4]} 27... b6
{[%clk 0:01:05.1]} 28. c3 {[%clk 0:01:49.2]} 28... Bc6 {[%clk 0:00:54.6]} 29.
Rf8 {[%clk 0:01:33.6]} 29... Re7+ {[%clk 0:00:49.5]} 30. Kd2 {[%clk 0:01:33]}
30... h5 {[%clk 0:00:44.8]} 31. h4 {[%clk 0:01:28.6]} 31... b5 {[%clk 0:00:42]}
32. Bd3 {[%clk 0:01:22.1]} 32... c4 {[%clk 0:00:39.1]} 33. Be2 {[%clk
0:01:14.9]} 33... Kb6 {[%clk 0:00:34.6]} 34. Rd8 {[%clk 0:01:01.4]} 34... Kc5
{[%clk 0:00:21.4]} 35. Bd1 {[%clk 0:00:49.3]} 35... a5 {[%clk 0:00:15.4]} 36.
Bc2 {[%clk 0:00:43.6]} 36... Bf3 {[%clk 0:00:15.3]} 37. Rc8+ {[%clk 0:00:30.3]}
37... Kb6 {[%clk 0:00:15.3]} 38. Rb8+ {[%clk 0:00:28.1]} 38... Kc6 {[%clk
0:00:09.2]} 39. Rc8+ {[%clk 0:00:24.4]} 39... Kb7 {[%clk 0:00:05.5]} 40. Rc5
{[%clk 0:00:22.2]} 40... Re2+ {[%clk 0:00:02.2]} 41. Kc1 {[%clk 0:00:22]} 41...
Re1+ {[%clk 0:00:02.4]} 42. Kd2 {[%clk 0:00:21.8]} 42... Re2+ {[%clk 0:00:03.3]}
43. Kc1 {[%clk 0:00:21.5]} 43... Kb6 {[%clk 0:00:04.2]} 44. Rc8 {[%clk
0:00:17.1]} 44... Rg2 {[%clk 0:00:04]} 45. Rf8 {[%clk 0:00:16]} 45... Rxg3
{[%clk 0:00:02.7]} 46. Rxf7 {[%clk 0:00:16.1]} 46... Rg4 {[%clk 0:00:03.4]} 47.
Rf6+ {[%clk 0:00:13.6]} 47... Kc5 {[%clk 0:00:03.9]} 48. Bxg6 {[%clk 0:00:12.3]}
48... Rxh4 {[%clk 0:00:04.5]} 49. Rf5+ {[%clk 0:00:12.2]} 49... Kb6 {[%clk
0:00:03.7]} 50. Be8 {[%clk 0:00:10.6]} 50... Rh1+ {[%clk 0:00:02.8]} 51. Kd2
{[%clk 0:00:10.4]} 51... Rh2+ {[%clk 0:00:03.7]} 52. Kc1 {[%clk 0:00:10.8]}
52... Be4 {[%clk 0:00:03.5]} 53. Rxb5+ {[%clk 0:00:09.7]} 53... Kc7 {[%clk
0:00:04.1]} 54. Rxh5 {[%clk 0:00:08.3]} 54... Rc2+ {[%clk 0:00:03.2]} 55. Kd1
{[%clk 0:00:08.4]} 55... Rxb2 {[%clk 0:00:03.2]} 56. Rc5+ {[%clk 0:00:05]} 56...
Kd8 {[%clk 0:00:02.7]} 57. Bf7 {[%clk 0:00:04.2]} 57... Bf3+ {[%clk 0:00:01.6]}
58. Kc1 {[%clk 0:00:03.8]} 58... Rb3 {[%clk 0:00:02.2]} 0-1

[Event "Early-Titled-Tuesday-Blitz-March-12-2024"]
[Site "Chess.com"]
[Date "2024.03.12"]
[Round "3"]
[White "temus_galaktionov"]
[Black "ChelsieMonica"]
[Result "1-0"]
[WhiteElo "2882"]
[BlackElo "2540"]
[TimeControl "180+1"]
[EndTime "8:29:35 PDT"]
[Termination "temus_galaktionov won by resignation"]

1. d4 {[%clk 0:03:00.9]} 1... Nf6 {[%clk 0:02:59.7]} 2. Nf3 {[%clk 0:02:57.9]}
2... b6 {[%clk 0:02:59.6]} 3. c4 {[%clk 0:02:53.3]} 3... Bb7 {[%clk 0:02:58.8]}
4. g3 {[%clk 0:02:53.9]} 4... e6 {[%clk 0:02:59.3]} 5. Bg2 {[%clk 0:02:53.5]}
5... Be7 {[%clk 0:02:59.8]} 6. Nc3 {[%clk 0:02:53.6]} 6... O-O {[%clk
0:03:00.3]} 7. Qc2 {[%clk 0:02:53.5]} 7... d5 {[%clk 0:03:00.5]} 8. cxd5 {[%clk
0:02:54.3]} 8... exd5 {[%clk 0:03:00.8]} 9. O-O {[%clk 0:02:53.9]} 9... c5
{[%clk 0:03:01.2]} 10. Rd1 {[%clk 0:02:53.8]} 10... Nc6 {[%clk 0:02:57.2]} 11.
dxc5 {[%clk 0:02:50.9]} 11... bxc5 {[%clk 0:02:52.6]} 12. Bg5 {[%clk 0:02:50.7]}
12... d4 {[%clk 0:02:51.7]} 13. Na4 {[%clk 0:02:49.9]} 13... Nb4 {[%clk
0:02:44.5]} 14. Qc1 {[%clk 0:02:49.4]} 14... Rc8 {[%clk 0:02:42.6]} 15. b3
{[%clk 0:02:44.5]} 15... Nbd5 {[%clk 0:02:40]} 16. Ne5 {[%clk 0:02:40.7]} 16...
Qc7 {[%clk 0:02:34.2]} 17. Nc4 {[%clk 0:02:25.7]} 17... h6 {[%clk 0:02:31.2]}
18. Bd2 {[%clk 0:02:23.5]} 18... Qb8 {[%clk 0:02:20.6]} 19. Nab2 {[%clk
0:02:08.1]} 19... Nb6 {[%clk 0:02:17.5]} 20. Bf4 {[%clk 0:02:04.4]} 20... Qa8
{[%clk 0:02:16.8]} 21. Bxb7 {[%clk 0:02:03.7]} 21... Qxb7 {[%clk 0:02:16.7]} 22.
e3 {[%clk 0:01:59.2]} 22... Rfd8 {[%clk 0:02:13.4]} 23. exd4 {[%clk 0:01:56.8]}
23... cxd4 {[%clk 0:02:13.7]} 24. Be5 {[%clk 0:01:56]} 24... Ng4 {[%clk
0:02:03.9]} 25. Bxd4 {[%clk 0:01:52.8]} 25... Rxd4 {[%clk 0:02:01.5]} 26. Rxd4
{[%clk 0:01:53.7]} 26... Ne5 {[%clk 0:02:02]} 27. Nxe5 {[%clk 0:01:37.9]} 27...
Rxc1+ {[%clk 0:02:00.4]} 28. Rxc1 {[%clk 0:01:38.8]} 28... Ba3 {[%clk
0:01:51.2]} 29. Rc2 {[%clk 0:01:33.8]} 29... Bxb2 {[%clk 0:01:42]} 30. Rxb2
{[%clk 0:01:34.7]} 30... Qe7 {[%clk 0:01:39.4]} 31. Nf3 {[%clk 0:01:34.4]} 31...
Qf6 {[%clk 0:01:37.9]} 32. Kg2 {[%clk 0:01:33.5]} 32... g5 {[%clk 0:01:36.9]}
33. h3 {[%clk 0:01:31.7]} 33... Qc6 {[%clk 0:01:31.9]} 34. Rbd2 {[%clk
0:01:26.7]} 34... Kg7 {[%clk 0:01:32]} 35. g4 {[%clk 0:01:22.3]} 35... Nc8
{[%clk 0:01:28.4]} 36. Rc4 {[%clk 0:01:16.8]} 36... Qb7 {[%clk 0:01:26.5]} 37.
Rcd4 {[%clk 0:01:07.5]} 37... Qc6 {[%clk 0:01:14.8]} 38. Rd7 {[%clk 0:01:03.5]}
38... Nb6 {[%clk 0:01:01.1]} 39. R7d6 {[%clk 0:01:00.8]} 39... Qb7 {[%clk
0:00:58.8]} 40. R2d3 {[%clk 0:01:00.1]} 40... a5 {[%clk 0:00:56.2]} 41. a4
{[%clk 0:00:57.9]} 41... Nc8 {[%clk 0:00:53.2]} 42. Rd7 {[%clk 0:00:56.3]} 42...
Qc6 {[%clk 0:00:53.8]} 43. Kg3 {[%clk 0:00:55.3]} 43... Qe6 {[%clk 0:00:50]} 44.
h4 {[%clk 0:00:50]} 44... Qf6 {[%clk 0:00:27.3]} 45. hxg5 {[%clk 0:00:44.5]}
45... hxg5 {[%clk 0:00:28.2]} 46. R3d4 {[%clk 0:00:25.2]} 46... Kg6 {[%clk
0:00:21.7]} 47. Rd8 {[%clk 0:00:23.6]} 47... Qa6 {[%clk 0:00:19.8]} 48. Rg8+
{[%clk 0:00:23.1]} 48... Kh7 {[%clk 0:00:19.8]} 49. Rxg5 {[%clk 0:00:24]} 49...
Ne7 {[%clk 0:00:17.6]} 50. Rd1 {[%clk 0:00:19.9]} 50... Ng6 {[%clk 0:00:17.6]}
51. Rh5+ {[%clk 0:00:19]} 51... Kg7 {[%clk 0:00:17.8]} 52. Rf5 {[%clk
0:00:19.4]} 52... Qb7 {[%clk 0:00:16.8]} 53. Rd3 {[%clk 0:00:18.8]} 53... Qb8+
{[%clk 0:00:16.9]} 54. Kg2 {[%clk 0:00:17.7]} 54... Nf4+ {[%clk 0:00:17.5]} 55.
Rxf4 {[%clk 0:00:18.3]} 55... Qxf4 {[%clk 0:00:18.4]} 56. Rd4 {[%clk 0:00:19.2]}
56... Qf6 {[%clk 0:00:18]} 57. g5 {[%clk 0:00:18.9]} 57... Qe6 {[%clk
0:00:18.2]} 58. Kg3 {[%clk 0:00:18.8]} 58... Qxb3 {[%clk 0:00:18.4]} 59. Kf4
{[%clk 0:00:18.9]} 59... Qb8+ {[%clk 0:00:18.7]} 60. Ne5 {[%clk 0:00:18.1]}
60... Qb7 {[%clk 0:00:19.6]} 61. f3 {[%clk 0:00:18.2]} 61... Qc7 {[%clk
0:00:18.1]} 62. Rd7 {[%clk 0:00:18]} 62... Qc1+ {[%clk 0:00:18.7]} 63. Kg4
{[%clk 0:00:17]} 63... Qg1+ {[%clk 0:00:18.9]} 64. Kf5 {[%clk 0:00:16.9]} 64...
Qb1+ {[%clk 0:00:19.2]} 65. Kf4 {[%clk 0:00:16.7]} 65... Qb4+ {[%clk 0:00:19.2]}
66. Kg3 {[%clk 0:00:15.4]} 66... Qe1+ {[%clk 0:00:18.6]} 67. Kf4 {[%clk
0:00:15.8]} 67... Qb4+ {[%clk 0:00:19]} 68. Kf5 {[%clk 0:00:16]} 68... Qxa4
{[%clk 0:00:19.9]} 69. Rxf7+ {[%clk 0:00:15.7]} 69... Kg8 {[%clk 0:00:20.5]} 70.
Ra7 {[%clk 0:00:14.1]} 70... Qc2+ {[%clk 0:00:20.5]} 71. Kf6 {[%clk 0:00:13.9]}
71... Qc8 {[%clk 0:00:18.4]} 72. Rg7+ {[%clk 0:00:13.5]} 72... Kf8 {[%clk
0:00:18.3]} 73. Ng6+ {[%clk 0:00:13.9]} 73... Ke8 {[%clk 0:00:18.9]} 74. Rg8+
{[%clk 0:00:14.3]} 74... Kd7 {[%clk 0:00:19.6]} 75. Ne5+ {[%clk 0:00:14.5]}
75... Kc7 {[%clk 0:00:19.5]} 76. Rxc8+ {[%clk 0:00:15.4]} 76... Kxc8 {[%clk
0:00:20.3]} 77. g6 {[%clk 0:00:16.3]} 77... a4 {[%clk 0:00:20.7]} 78. g7 {[%clk
0:00:17.2]} 78... a3 {[%clk 0:00:21.5]} 79. g8=Q+ {[%clk 0:00:18.1]} 79... Kc7
{[%clk 0:00:22.2]} 80. Qa2 {[%clk 0:00:18.1]} 80... Kb6 {[%clk 0:00:23.1]} 81.
Qxa3 {[%clk 0:00:19]} 1-0

[Event "Early-Titled-Tuesday-Blitz-March-12-2024"]
[Site "Chess.com"]
[Date "2024.03.12"]
[Round "3"]
[White "sokidze"]
[Black "Cryptinz"]
[Result "1-0"]
[WhiteElo "2798"]
[BlackElo "2514"]
[TimeControl "180+1"]
[EndTime "8:29:45 PDT"]
[Termination "sokidze won on time"]

1. d4 {[%clk 0:03:00.9]} 1... d5 {[%clk 0:02:59.4]} 2. c4 {[%clk 0:03:01.3]}
2... c6 {[%clk 0:02:59.5]} 3. cxd5 {[%clk 0:02:59.4]} 3... cxd5 {[%clk
0:02:59.5]} 4. Bf4 {[%clk 0:03:00]} 4... Nc6 {[%clk 0:02:58.3]} 5. e3 {[%clk
0:03:00]} 5... Nf6 {[%clk 0:02:56.6]} 6. Nc3 {[%clk 0:03:00.5]} 6... Bg4 {[%clk
0:02:52.9]} 7. Qb3 {[%clk 0:03:00]} 7... Na5 {[%clk 0:02:51.3]} 8. Qa4+ {[%clk
0:03:00.5]} 8... Bd7 {[%clk 0:02:49.6]} 9. Qc2 {[%clk 0:03:01.1]} 9... Rc8
{[%clk 0:02:49]} 10. Bd3 {[%clk 0:03:00.6]} 10... e6 {[%clk 0:02:46.8]} 11. Nf3
{[%clk 0:02:59.8]} 11... Be7 {[%clk 0:02:46.8]} 12. h3 {[%clk 0:02:55]} 12... b5
{[%clk 0:02:46.6]} 13. a3 {[%clk 0:02:54.6]} 13... O-O {[%clk 0:02:44.9]} 14.
O-O {[%clk 0:02:55.1]} 14... Nc4 {[%clk 0:02:43.4]} 15. Ne5 {[%clk 0:02:50.1]}
15... h6 {[%clk 0:02:30.5]} 16. Qe2 {[%clk 0:02:45.3]} 16... a6 {[%clk
0:01:58.8]} 17. a4 {[%clk 0:02:23.9]} 17... b4 {[%clk 0:01:42.1]} 18. Nxd7
{[%clk 0:02:10.4]} 18... Qxd7 {[%clk 0:01:31.2]} 19. Nb1 {[%clk 0:02:07.2]}
19... a5 {[%clk 0:01:14.1]} 20. b3 {[%clk 0:01:19.9]} 20... Na3 {[%clk
0:01:13.6]} 21. Nd2 {[%clk 0:01:01.8]} 21... Rc3 {[%clk 0:01:13.5]} 22. Bb5
{[%clk 0:00:47.7]} 22... Nxb5 {[%clk 0:00:57.1]} 23. Qxb5 {[%clk 0:00:29.7]}
23... Qxb5 {[%clk 0:00:56.8]} 24. axb5 {[%clk 0:00:30.6]} 24... Bd8 {[%clk
0:00:56.7]} 25. Bd6 {[%clk 0:00:18.5]} 25... Re8 {[%clk 0:00:56.4]} 26. Rac1
{[%clk 0:00:13.6]} 26... Rd3 {[%clk 0:00:39.5]} 27. Rfd1 {[%clk 0:00:10.3]}
27... Nd7 {[%clk 0:00:34.6]} 28. Kf1 {[%clk 0:00:08.6]} 28... Be7 {[%clk
0:00:31.3]} 29. Bxe7 {[%clk 0:00:07.1]} 29... Rxe7 {[%clk 0:00:32.2]} 30. Rc7
{[%clk 0:00:05.5]} 30... Rc3 {[%clk 0:00:28.7]} 31. Rc1 {[%clk 0:00:03.1]} 31...
Rxc1+ {[%clk 0:00:18.8]} 32. Rxc1 {[%clk 0:00:04]} 32... Nb6 {[%clk 0:00:17.8]}
33. Ra1 {[%clk 0:00:04.6]} 33... Ra7 {[%clk 0:00:17.2]} 34. Ke2 {[%clk
0:00:03.1]} 34... a4 {[%clk 0:00:13.5]} 35. bxa4 {[%clk 0:00:04]} 35... Nxa4
{[%clk 0:00:13.6]} 36. Ke1 {[%clk 0:00:04]} 36... Ra8 {[%clk 0:00:10.2]} 37. Nb3
{[%clk 0:00:04.2]} 37... Kf8 {[%clk 0:00:08.9]} 38. Nc5 {[%clk 0:00:02.9]} 38...
Nb6 {[%clk 0:00:08.4]} 39. Rxa8+ {[%clk 0:00:01.9]} 39... Nxa8 {[%clk
0:00:09.3]} 40. Kd2 {[%clk 0:00:02.6]} 40... Ke7 {[%clk 0:00:07.7]} 41. Kc2
{[%clk 0:00:03.1]} 41... Kd6 {[%clk 0:00:06.4]} 42. Kb3 {[%clk 0:00:03.7]} 42...
Kc7 {[%clk 0:00:06]} 43. Kxb4 {[%clk 0:00:04.2]} 43... Kb6 {[%clk 0:00:05.9]}
44. Nd7+ {[%clk 0:00:04.6]} 44... Kc7 {[%clk 0:00:06.3]} 45. Ne5 {[%clk
0:00:05.1]} 45... f6 {[%clk 0:00:06.5]} 46. Nd3 {[%clk 0:00:05.7]} 46... Nb6
{[%clk 0:00:05.9]} 47. Nc5 {[%clk 0:00:05.9]} 47... e5 {[%clk 0:00:06.1]} 48.
Ne6+ {[%clk 0:00:05.6]} 48... Kd6 {[%clk 0:00:06.5]} 49. Nxg7 {[%clk 0:00:06.1]}
49... exd4 {[%clk 0:00:06.4]} 50. Nf5+ {[%clk 0:00:06.6]} 50... Ke5 {[%clk
0:00:06.4]} 51. Nxd4 {[%clk 0:00:06.9]} 51... Kd6 {[%clk 0:00:06.8]} 52. Nf5+
{[%clk 0:00:06.8]} 52... Ke5 {[%clk 0:00:06.9]} 53. Nxh6 {[%clk 0:00:07.4]}
53... d4 {[%clk 0:00:07]} 54. exd4+ {[%clk 0:00:07.4]} 54... Kxd4 {[%clk
0:00:07.9]} 55. Nf5+ {[%clk 0:00:07.7]} 55... Ke5 {[%clk 0:00:08]} 56. Ne3
{[%clk 0:00:08.3]} 56... Kd4 {[%clk 0:00:08]} 57. Ka5 {[%clk 0:00:07.9]} 57...
Kc5 {[%clk 0:00:08.9]} 58. h4 {[%clk 0:00:07]} 58... f5 {[%clk 0:00:07.3]} 59.
g3 {[%clk 0:00:06]} 59... f4 {[%clk 0:00:06.9]} 60. gxf4 {[%clk 0:00:06.3]}
60... Nd7 {[%clk 0:00:07.8]} 61. h5 {[%clk 0:00:06.5]} 61... Nf6 {[%clk
0:00:07.8]} 62. h6 {[%clk 0:00:06.9]} 62... Kd6 {[%clk 0:00:07.2]} 63. b6 {[%clk
0:00:07.3]} 63... Kc6 {[%clk 0:00:07.7]} 64. Ka6 {[%clk 0:00:07.8]} 64... Nd7
{[%clk 0:00:07.5]} 65. h7 {[%clk 0:00:08.1]} 65... Nc5+ {[%clk 0:00:07.7]} 66.
Ka7 {[%clk 0:00:08.8]} 1-0